[Event "EIRCC 2019"]
[Site "Tallinn"]
[Date "2019.12.05"]
[Round "5.17"]
[White "Azimov, Ilyas"]
[Black "Pohjala, Henri"]
[Result "0-1"]
[ECO "B01"]
[WhiteElo "2203"]
[BlackElo "2418"]
[Annotator "NA"]
[PlyCount "112"]
[EventDate "2019.12.05"]
[EventType "swiss"]
[EventCountry "EST"]
[SourceTitle "playchess.com"]
[Source "ChessBase"]
[SourceQuality "1"]
[TimeControl "900+10"]

1. e4 {[%emt 0:00:00]} d5 {[%emt 0:00:00]} 2. exd5 {[%emt 0:00:04]} Qxd5 {[%emt 0:00:00]} 3. Nc3 {[%emt 0:00:05]} Qd6 {[%emt 0:00:00]} 4. d4 {[%emt 0:00:05]} Nf6 {[%emt 0:00:00]} 5. Nf3 {[%emt 0:00:14]} a6 {[%emt 0:00:00]} 6. g3 {[%emt 0:00:05]} Bg4 {[%emt 0:00:04]} 7. Bg2 {[%emt 0:00:04]} Nc6 {[%emt 0:00:02]} 8. O-O {[%emt 0:01:12]} O-O-O {[%emt 0:00:04]} 9. d5 {[%emt 0:00:59]} Ne5 {[%emt 0:04:57]} 10. Bf4 {[%emt 0:01:13]} Nxf3+ {[%emt 0:00:03]} 11. Bxf3 {[%emt 0:00:12]} Bxf3 {[%emt 0:00:04]} 12. Qxf3 {[%emt 0:00:05]} e5 {[%emt 0:00:02]} 13. dxe6 {[%emt 0:00:46]} Qxe6 {[%emt 0:00:05]} 14. Rfe1 {[%emt 0:01:23]} Qf5 {[%emt 0:03:40]} 15. Re5 {[%emt 0:03:22]} Qxc2 {[%emt 0:04:20]} 16. Rc1 {[%emt 0:00:04]} Rd3 {[%emt 0:00:51]} 17. Qg2 {[%emt 0:03:44]} Qxb2 {[%emt 0:00:05]} 18. Re2 {[%emt 0:01:40]} Qa3 {[%emt 0:02:34]} 19. Qh3+ {[%emt 0:00:43]} Rd7 {[%emt 0:00:34]} 20. Nd5 {[%emt 0:00:48]} Bc5 {[%emt 0:00:35]} 21. Nxf6 {[%emt 0:00:49]} gxf6 {[%emt 0:00:02]} 22. Qf5 {[%emt 0:00:01]} b6 {[%emt 0:00:25]} 23. Re7 {[%emt 0:00:56]} Rhd8 {[%emt 0:00:08]} 24. Rxd7 {[%emt 0:00:13]} Rxd7 {[%emt 0:00:02]} 25. Rd1 {[%emt 0:00:08]} Qa4 {[%emt 0:00:02]} 26. Rd2 {[%emt 0:00:07]} Qc6 {[%emt 0:00:12]} 27. h4 {[%emt 0:00:13]} Qe6 {[%emt 0:00:15]} 28. Qb1 {[%emt 0:00:14]} Rxd2 {[%emt 0:00:18]} 29. Bxd2 {[%emt 0:00:01]} h5 {[%emt 0:00:10]} 30. Qd1 {[%emt 0:00:15]} Qd5 {[%emt 0:00:02]} 31. Qe2 {[%emt 0:00:04]} Kb7 {[%emt 0:00:01]} 32. Bc3 {[%emt 0:00:05]} Qf5 {[%emt 0:00:29]} 33. Kg2 {[%emt 0:00:02]} b5 {[%emt 0:00:04]} 34. f3 {[%emt 0:00:12]} Bd6 {[%emt 0:00:09]} 35. Qe4+ {[%emt 0:00:20]} Qxe4 {[%emt 0:00:12]} 36. fxe4 {[%emt 0:00:00]} c5 {[%emt 0:00:15]} 37. Bxf6 {[%emt 0:00:22]} c4 {[%emt 0:00:10]} 38. Kf3 {[%emt 0:00:11]} b4 {[%emt 0:00:03]} 39. a3 {[%emt 0:00:01]} a5 {[%emt 0:00:03]} 40. axb4 {[%emt 0:00:03]} axb4 {[%emt 0:00:24]} 41. g4 {[%emt 0:00:09]} hxg4+ {[%emt 0:00:04]} 42. Kxg4 {[%emt 0:00:01]} Bf8 {[%emt 0:00:16]} 43. Kg5 {[%emt 0:00:21]} Kc6 {[%emt 0:00:07]} 44. Bd4 {[%emt 0:00:13]} c3 {[%emt 0:00:08]} 45. h5 {[%emt 0:00:06]} Kd7 {[%emt 0:00:13]} 46. h6 {[%emt 0:00:08]} Bxh6+ {[%emt 0:00:04]} 47. Kxh6 {[%emt 0:00:03]} Kc6 {[%emt 0:00:16]} 48. Kg7 {[%emt 0:00:03]} Kb5 {[%emt 0:00:00]} 49. Kxf7 {[%emt 0:00:17]} Kc4 {[%emt 0:00:01]} 50. e5 {[%emt 0:00:38]} Kxd4 {[%emt 0:00:11]} 51. e6 {[%emt 0:00:01]} c2 {[%emt 0:00:01]} 52. e7 {[%emt 0:00:01]} c1=Q {[%emt 0:00:04]} 53. e8=Q {[%emt 0:00:01]} Qf4+ {[%emt 0:00:21]} 54. Kg8 {[%emt 0:00:06]} Qg5+ {[%emt 0:00:10]} 55. Kh7 {[%emt 0:00:05]} Qf5+ {[%emt 0:00:07]} 56. Kh6 {[%emt 0:00:11]} Qf4+ {[%emt 0:00:05]} 0-1

[Event "EIRCC 2019"]
[Site "Tallinn"]
[Date "2019.12.05"]
[Round "5.20"]
[White "Mamedov, Rauf"]
[Black "Askerov, Marat"]
[Result "1-0"]
[ECO "B10"]
[WhiteElo "2679"]
[BlackElo "2243"]
[Annotator "ChessBase"]
[PlyCount "115"]
[EventDate "2019.12.05"]
[EventType "swiss"]
[EventCountry "EST"]
[SourceTitle "playchess.com"]
[Source "ChessBase"]
[SourceQuality "1"]
[TimeControl "900+10"]

1. e4 {[%emt 0:01:02]} c6 {[%emt 0:00:00]} 2. Ne2 {[%emt 0:00:04]} d5 {[%emt 0:01:12]} 3. e5 {[%emt 0:00:01]} Bf5 {[%emt 0:00:32]} 4. Ng3 {[%emt 0:00:02]} Bg6 {[%emt 0:00:29]} 5. h4 {[%emt 0:00:01]} h5 {[%emt 0:00:12]} 6. Be2 {[%emt 0:00:11]} e6 {[%emt 0:00:09]} 7. d4 {[%emt 0:00:02]} Be7 {[%emt 0:00:27]} 8. Nxh5 {[%emt 0:00:23]} Bxh5 {[%emt 0:00:04]} 9. Bxh5 {[%emt 0:00:01]} g6 {[%emt 0:00:07]} 10. Be2 {[%emt 0:00:21]} Rxh4 {[%emt 0:00:02]} 11. Rxh4 {[%emt 0:00:01]} Bxh4 {[%emt 0:00:02]} 12. Nd2 {[%emt 0:00:07]} Bg5 {[%emt 0:01:30]} 13. Nf3 {[%emt 0:00:07]} Bxc1 {[%emt 0:00:04]} 14. Qxc1 {[%emt 0:00:02]} Nd7 {[%emt 0:00:04]} 15. Qf4 {[%emt 0:00:05]} Qe7 {[%emt 0:01:10]} 16. O-O-O {[%emt 0:00:19]} O-O-O {[%emt 0:01:03]} 17. Rh1 {[%emt 0:00:02]} f6 {[%emt 0:00:14]} 18. exf6 {[%emt 0:01:00]} Ngxf6 {[%emt 0:00:02]} 19. Bd3 {[%emt 0:00:02]} Rg8 {[%emt 0:01:00]} 20. Re1 {[%emt 0:00:03]} g5 {[%emt 0:00:41]} 21. Qe3 {[%emt 0:00:04]} Ng4 {[%emt 0:00:45]} 22. Qxe6 {[%emt 0:00:45]} Qxe6 {[%emt 0:00:06]} 23. Rxe6 {[%emt 0:00:01]} Nxf2 {[%emt 0:00:08]} 24. Bf5 {[%emt 0:00:01]} g4 {[%emt 0:05:03]} 25. Nh4 {[%emt 0:00:33]} Rg7 {[%emt 0:01:07]} 26. g3 {[%emt 0:04:51]} Kd8 {[%emt 0:01:06]} 27. Kd2 {[%emt 0:00:25]} Nh1 {[%emt 0:00:31]} 28. Re3 {[%emt 0:00:02]} Re7 {[%emt 0:00:08]} 29. Rd3 {[%emt 0:03:20]} Nf6 {[%emt 0:00:21]} 30. Ng6 {[%emt 0:00:01]} Ne4+ {[%emt 0:00:16]} 31. Bxe4 {[%emt 0:00:02]} Rxe4 {[%emt 0:00:02]} 32. c3 {[%emt 0:00:03]} Kd7 {[%emt 0:00:19]} 33. Nh4 {[%emt 0:01:48]} Ke6 {[%emt 0:00:18]} 34. Ng2 {[%emt 0:00:54]} Kf5 {[%emt 0:00:23]} 35. Ne3+ {[%emt 0:00:23]} Kg5 {[%emt 0:00:06]} 36. Nd1 {[%emt 0:00:01]} Re7 {[%emt 0:00:19]} 37. a4 {[%emt 0:02:26]} a5 {[%emt 0:00:06]} 38. b4 {[%emt 0:00:13]} b6 {[%emt 0:00:13]} 39. bxa5 {[%emt 0:00:28]} bxa5 {[%emt 0:00:01]} 40. c4 {[%emt 0:00:01]} dxc4 {[%emt 0:00:39]} 41. Rc3 {[%emt 0:00:01]} Rd7 {[%emt 0:00:07]} 42. Rxc4 {[%emt 0:00:24]} Nxg3 {[%emt 0:00:03]} 43. Ne3 {[%emt 0:00:01]} Kf4 {[%emt 0:00:18]} 44. Kd3 {[%emt 0:00:20]} Kf3 {[%emt 0:00:32]} 45. Rxc6 {[%emt 0:00:03]} Nh5 {[%emt 0:00:10]} 46. d5 {[%emt 0:00:54]} Nf4+ {[%emt 0:00:11]} 47. Kd4 {[%emt 0:00:01]} g3 {[%emt 0:00:13]} 48. Rf6 {[%emt 0:00:03]} Re7 {[%emt 0:00:08]} 49. Nf5 {[%emt 0:00:26]} Re4+ {[%emt 0:00:13]} 50. Kc5 {[%emt 0:00:01]} g2 {[%emt 0:00:12]} 51. Nh4+ {[%emt 0:00:03]} Kg4 {[%emt 0:00:05]} 52. Nxg2 {[%emt 0:00:05]} Nxg2 {[%emt 0:00:04]} 53. d6 {[%emt 0:00:01]} Nf4 {[%emt 0:00:18]} 54. d7 {[%emt 0:00:03]} Re5+ {[%emt 0:00:12]} 55. Kd6 {[%emt 0:00:33]} Rd5+ {[%emt 0:00:08]} 56. Kc6 {[%emt 0:00:02]} Rd4 {[%emt 0:00:08]} 57. Rd6 {[%emt 0:00:01]} Rc4+ {[%emt 0:00:14]} 58. Kb5 {[%emt 0:00:04]} 1-0

[Event "EIRCC 2019"]
[Site "Tallinn"]
[Date "2019.12.05"]
[Round "5.23"]
[White "Postny, Evgeny"]
[Black "Nivala, Tuomas"]
[Result "1-0"]
[ECO "E04"]
[WhiteElo "2598"]
[BlackElo "2236"]
[Annotator "ChessBase"]
[PlyCount "55"]
[EventDate "2019.12.05"]
[EventType "swiss"]
[EventCountry "EST"]
[SourceTitle "playchess.com"]
[Source "ChessBase"]
[SourceQuality "1"]
[TimeControl "900+10"]

1. d4 {[%emt 0:00:00]} d5 {[%emt 0:00:00]} 2. c4 {[%emt 0:00:02]} e6 {[%emt 0:00:00]} 3. Nf3 {[%emt 0:00:02]} Nf6 {[%emt 0:00:11]} 4. g3 {[%emt 0:00:02]} dxc4 {[%emt 0:00:08]} 5. Bg2 {[%emt 0:00:03]} Bd7 {[%emt 0:00:27]} 6. Ne5 {[%emt 0:00:06]} Nc6 {[%emt 0:00:12]} 7. Nxc4 {[%emt 0:00:05]} Bb4+ {[%emt 0:01:20]} 8. Nc3 {[%emt 0:00:12]} O-O {[%emt 0:00:23]} 9. O-O {[%emt 0:00:05]} Rb8 {[%emt 0:01:24]} 10. a3 {[%emt 0:00:57]} b5 {[%emt 0:00:49]} 11. axb4 {[%emt 0:01:30]} bxc4 {[%emt 0:00:03]} 12. b5 {[%emt 0:00:03]} Nb4 {[%emt 0:00:52]} 13. Ra4 {[%emt 0:00:58]} Nbd5 {[%emt 0:01:52]} 14. e4 {[%emt 0:00:11]} Nxc3 {[%emt 0:00:16]} 15. bxc3 {[%emt 0:00:01]} Rb7 {[%emt 0:03:50]} 16. Bg5 {[%emt 0:01:16]} Bxb5 {[%emt 0:00:17]} 17. e5 {[%emt 0:00:22]} Bxa4 {[%emt 0:00:20]} 18. Qxa4 {[%emt 0:00:03]} Rb2 {[%emt 0:00:41]} 19. exf6 {[%emt 0:00:11]} gxf6 {[%emt 0:00:03]} 20. Bh6 {[%emt 0:00:02]} Re8 {[%emt 0:00:33]} 21. Qxc4 {[%emt 0:00:10]} Qd6 {[%emt 0:00:48]} 22. d5 {[%emt 0:00:20]} f5 {[%emt 0:00:16]} 23. dxe6 {[%emt 0:01:26]} Qxe6 {[%emt 0:00:52]} 24. Bd5 {[%emt 0:00:31]} Qxh6 {[%emt 0:00:10]} 25. Bxf7+ {[%emt 0:00:02]} Kf8 {[%emt 0:00:03]} 26. Bxe8 {[%emt 0:00:02]} Kxe8 {[%emt 0:00:02]} 27. Re1+ {[%emt 0:01:08]} Kd8 {[%emt 0:00:16]} 28. Qd5+ {[%emt 0:00:12]} 1-0

[Event "EIRCC 2019"]
[Site "Tallinn"]
[Date "2019.12.05"]
[Round "5.24"]
[White "Stocek, Jiri"]
[Black "Haitin, Ilja"]
[Result "1-0"]
[ECO "D24"]
[WhiteElo "2532"]
[BlackElo "2232"]
[Annotator "ChessBase"]
[PlyCount "99"]
[EventDate "2019.12.05"]
[EventType "swiss"]
[EventCountry "EST"]
[SourceTitle "playchess.com"]
[Source "ChessBase"]
[SourceQuality "1"]
[TimeControl "900+10"]

1. d4 {[%emt 0:00:00]} d5 {[%emt 0:00:00]} 2. c4 {[%emt 0:00:00]} dxc4 {[%emt 0:00:00]} 3. Nf3 {[%emt 0:00:00]} Nf6 {[%emt 0:00:00]} 4. Nc3 {[%emt 0:00:00]} c5 {[%emt 0:00:46]} 5. d5 {[%emt 0:00:04]} e6 {[%emt 0:00:01]} 6. e4 {[%emt 0:00:03]} exd5 {[%emt 0:00:01]} 7. e5 {[%emt 0:00:02]} Ne4 {[%emt 0:00:01]} 8. Qxd5 {[%emt 0:00:27]} Nxc3 {[%emt 0:00:18]} 9. Qxd8+ {[%emt 0:00:04]} Kxd8 {[%emt 0:00:01]} 10. bxc3 {[%emt 0:00:03]} Nc6 {[%emt 0:00:06]} 11. Bxc4 {[%emt 0:00:13]} Be6 {[%emt 0:00:02]} 12. Bxe6 {[%emt 0:00:14]} fxe6 {[%emt 0:00:00]} 13. Ng5 {[%emt 0:00:04]} Ke7 {[%emt 0:00:35]} 14. f4 {[%emt 0:00:13]} h6 {[%emt 0:01:29]} 15. Ne4 {[%emt 0:00:02]} Kf7 {[%emt 0:00:01]} 16. h4 {[%emt 0:00:28]} h5 {[%emt 0:00:07]} 17. Ng5+ {[%emt 0:00:17]} Ke7 {[%emt 0:00:14]} 18. Ke2 {[%emt 0:00:16]} Rd8 {[%emt 0:00:31]} 19. Be3 {[%emt 0:00:06]} b6 {[%emt 0:00:09]} 20. Rad1 {[%emt 0:00:12]} g6 {[%emt 0:01:00]} 21. Rxd8 {[%emt 0:01:49]} Nxd8 {[%emt 0:00:01]} 22. Rd1 {[%emt 0:00:20]} Bh6 {[%emt 0:01:16]} 23. Ne4 {[%emt 0:00:04]} Nf7 {[%emt 0:00:02]} 24. a4 {[%emt 0:00:16]} Rd8 {[%emt 0:00:34]} 25. Rb1 {[%emt 0:00:34]} Kd7 {[%emt 0:01:50]} 26. g4 {[%emt 0:00:45]} hxg4 {[%emt 0:00:50]} 27. Rg1 {[%emt 0:00:12]} Rh8 {[%emt 0:00:41]} 28. Rxg4 {[%emt 0:00:50]} Bf8 {[%emt 0:00:06]} 29. Bf2 {[%emt 0:01:06]} Rh6 {[%emt 0:02:52]} 30. Nf6+ {[%emt 0:00:12]} Kc6 {[%emt 0:00:01]} 31. c4 {[%emt 0:00:11]} Bg7 {[%emt 0:01:23]} 32. Ng8 {[%emt 0:03:56]} Rh8 {[%emt 0:01:09]} 33. Ne7+ {[%emt 0:00:03]} Kd7 {[%emt 0:00:03]} 34. Nxg6 {[%emt 0:00:03]} Rh7 {[%emt 0:01:43]} 35. Rg1 {[%emt 0:00:07]} Rh6 {[%emt 0:01:28]} 36. Kf3 {[%emt 0:00:29]} Ke8 {[%emt 0:00:15]} 37. Ke4 {[%emt 0:00:32]} Nd8 {[%emt 0:01:02]} 38. a5 {[%emt 0:00:39]} Kf7 {[%emt 0:00:06]} 39. axb6 {[%emt 0:00:10]} axb6 {[%emt 0:00:01]} 40. Ne7 {[%emt 0:00:40]} Kxe7 {[%emt 0:00:17]} 41. Rxg7+ {[%emt 0:00:03]} Nf7 {[%emt 0:00:04]} 42. Rg8 {[%emt 0:00:11]} Rh8 {[%emt 0:00:41]} 43. Rxh8 {[%emt 0:00:05]} Nxh8 {[%emt 0:00:01]} 44. h5 {[%emt 0:00:01]} Nf7 {[%emt 0:00:20]} 45. Bh4+ {[%emt 0:00:03]} Kf8 {[%emt 0:00:09]} 46. f5 {[%emt 0:00:06]} exf5+ {[%emt 0:00:05]} 47. Kxf5 {[%emt 0:00:02]} Kg7 {[%emt 0:00:17]} 48. Bg5 {[%emt 0:00:16]} Kh7 {[%emt 0:00:10]} 49. Kf6 {[%emt 0:00:07]} Nd8 {[%emt 0:00:09]} 50. e6 {[%emt 0:00:04]} 1-0

[Event "EIRCC 2019"]
[Site "Tallinn"]
[Date "2019.12.05"]
[Round "5.25"]
[White "Potapov, Pavel"]
[Black "Sysolyatin, Evgeny"]
[Result "1/2-1/2"]
[ECO "C54"]
[WhiteElo "2482"]
[BlackElo "2231"]
[Annotator "ChessBase"]
[PlyCount "111"]
[EventDate "2019.12.05"]
[EventType "swiss"]
[EventCountry "EST"]
[SourceTitle "playchess.com"]
[Source "ChessBase"]
[SourceQuality "1"]
[TimeControl "900+10"]

1. e4 {[%emt 0:00:00]} e5 {[%emt 0:00:00]} 2. Nf3 {[%emt 0:00:00]} Nc6 {[%emt 0:00:00]} 3. Bc4 {[%emt 0:00:00]} Bc5 {[%emt 0:00:00]} 4. c3 {[%emt 0:00:00]} Nf6 {[%emt 0:00:00]} 5. d4 {[%emt 0:00:01]} exd4 {[%emt 0:00:00]} 6. e5 {[%emt 0:00:01]} d5 {[%emt 0:00:39]} 7. Bb5 {[%emt 0:00:02]} Ne4 {[%emt 0:00:22]} 8. cxd4 {[%emt 0:00:02]} Bb4+ {[%emt 0:00:47]} 9. Bd2 {[%emt 0:00:02]} Bxd2+ {[%emt 0:04:16]} 10. Nbxd2 {[%emt 0:00:02]} Bd7 {[%emt 0:00:01]} 11. Bxc6 {[%emt 0:00:11]} Bxc6 {[%emt 0:00:07]} 12. O-O {[%emt 0:00:04]} O-O {[%emt 0:00:07]} 13. Rc1 {[%emt 0:00:22]} Nxd2 {[%emt 0:01:20]} 14. Qxd2 {[%emt 0:00:25]} Bd7 {[%emt 0:00:08]} 15. Qc3 {[%emt 0:00:17]} c6 {[%emt 0:00:02]} 16. Rfe1 {[%emt 0:00:04]} Bf5 {[%emt 0:00:13]} 17. Nd2 {[%emt 0:00:11]} f6 {[%emt 0:00:22]} 18. Nf1 {[%emt 0:00:37]} fxe5 {[%emt 0:00:02]} 19. Rxe5 {[%emt 0:00:05]} Qf6 {[%emt 0:00:07]} 20. Qe3 {[%emt 0:04:10]} Bg6 {[%emt 0:00:27]} 21. Nd2 {[%emt 0:00:52]} Qf4 {[%emt 0:01:56]} 22. g3 {[%emt 0:00:44]} Qxe3 {[%emt 0:00:02]} 23. Rxe3 {[%emt 0:00:02]} Rfe8 {[%emt 0:00:02]} 24. Rce1 {[%emt 0:00:10]} Rxe3 {[%emt 0:00:03]} 25. Rxe3 {[%emt 0:00:02]} Re8 {[%emt 0:00:01]} 26. Rxe8+ {[%emt 0:00:13]} Bxe8 {[%emt 0:00:01]} 27. f4 {[%emt 0:00:08]} Kf7 {[%emt 0:00:01]} 28. Kf2 {[%emt 0:00:04]} Ke6 {[%emt 0:00:01]} 29. g4 {[%emt 0:00:11]} b6 {[%emt 0:00:02]} 30. b4 {[%emt 0:00:19]} Kd6 {[%emt 0:00:01]} 31. Nb3 {[%emt 0:00:44]} h5 {[%emt 0:00:26]} 32. h3 {[%emt 0:00:05]} hxg4 {[%emt 0:00:02]} 33. hxg4 {[%emt 0:00:02]} Ke6 {[%emt 0:04:13]} 34. Kg3 {[%emt 0:00:16]} Kf6 {[%emt 0:00:15]} 35. f5 {[%emt 0:01:13]} g6 {[%emt 0:00:59]} 36. fxg6 {[%emt 0:00:11]} Bxg6 {[%emt 0:00:01]} 37. Kf4 {[%emt 0:00:21]} Bc2 {[%emt 0:00:01]} 38. Nd2 {[%emt 0:00:05]} Ke6 {[%emt 0:00:01]} 39. Nf1 {[%emt 0:01:09]} Bb1 {[%emt 0:00:13]} 40. a3 {[%emt 0:00:02]} Kd6 {[%emt 0:00:28]} 41. Ne3 {[%emt 0:04:12]} c5 {[%emt 0:00:03]} 42. Nf5+ {[%emt 0:01:08]} Bxf5 {[%emt 0:01:35]} 43. dxc5+ {[%emt 0:00:01]} bxc5 {[%emt 0:00:01]} 44. gxf5 {[%emt 0:00:23]} cxb4 {[%emt 0:02:29]} 45. axb4 {[%emt 0:00:01]} a6 {[%emt 0:00:18]} 46. Kg5 {[%emt 0:00:34]} d4 {[%emt 0:00:09]} 47. Kf4 {[%emt 0:00:17]} d3 {[%emt 0:00:11]} 48. Ke3 {[%emt 0:00:01]} Ke5 {[%emt 0:00:01]} 49. Kxd3 {[%emt 0:00:09]} Kxf5 {[%emt 0:00:00]} 50. Kd4 {[%emt 0:00:10]} Ke6 {[%emt 0:00:06]} 51. Kc5 {[%emt 0:00:09]} a5 {[%emt 0:00:03]} 52. bxa5 {[%emt 0:01:36]} Kd7 {[%emt 0:00:03]} 53. Kb6 {[%emt 0:00:10]} Kc8 {[%emt 0:00:00]} 54. a6 {[%emt 0:00:04]} Kb8 {[%emt 0:00:01]} 55. a7+ {[%emt 0:00:01]} Ka8 {[%emt 0:00:01]} 56. Ka6 {[%emt 0:00:00]} 1/2-1/2

[Event "EIRCC 2019"]
[Site "Tallinn"]
[Date "2019.12.05"]
[Round "5.26"]
[White "Valner, Uku"]
[Black "Loginov, Valery A"]
[Result "0-1"]
[ECO "B26"]
[WhiteElo "2243"]
[BlackElo "2461"]
[Annotator "ChessBase"]
[PlyCount "108"]
[EventDate "2019.12.05"]
[EventType "swiss"]
[EventCountry "EST"]
[SourceTitle "playchess.com"]
[Source "ChessBase"]
[SourceQuality "1"]
[TimeControl "900+10"]

1. e4 {[%emt 0:00:00]} c5 {[%emt 0:00:00]} 2. Nc3 {[%emt 0:00:00]} Nc6 {[%emt 0:00:00]} 3. g3 {[%emt 0:00:00]} g6 {[%emt 0:00:00]} 4. Bg2 {[%emt 0:00:00]} Bg7 {[%emt 0:00:00]} 5. d3 {[%emt 0:00:00]} d6 {[%emt 0:00:05]} 6. Be3 {[%emt 0:00:00]} e5 {[%emt 0:00:02]} 7. Qd2 {[%emt 0:00:16]} Be6 {[%emt 0:00:03]} 8. Nd5 {[%emt 0:00:41]} Bxd5 {[%emt 0:00:43]} 9. exd5 {[%emt 0:00:01]} Nce7 {[%emt 0:00:01]} 10. Ne2 {[%emt 0:00:43]} Nf5 {[%emt 0:00:25]} 11. Nc3 {[%emt 0:00:37]} Nge7 {[%emt 0:00:15]} 12. h4 {[%emt 0:01:25]} Nxe3 {[%emt 0:00:23]} 13. fxe3 {[%emt 0:00:03]} h5 {[%emt 0:01:02]} 14. Bh3 {[%emt 0:01:05]} f5 {[%emt 0:00:19]} 15. e4 {[%emt 0:01:57]} Qb6 {[%emt 0:00:21]} 16. O-O {[%emt 0:01:34]} c4+ {[%emt 0:00:54]} 17. Kh1 {[%emt 0:00:44]} cxd3 {[%emt 0:00:04]} 18. cxd3 {[%emt 0:00:11]} Bh6 {[%emt 0:00:09]} 19. Qe2 {[%emt 0:00:32]} f4 {[%emt 0:00:32]} 20. g4 {[%emt 0:01:49]} Bg7 {[%emt 0:00:48]} 21. Rac1 {[%emt 0:01:12]} hxg4 {[%emt 0:00:54]} 22. Qxg4 {[%emt 0:00:02]} Bf6 {[%emt 0:00:18]} 23. Qe6 {[%emt 0:02:21]} Bxh4 {[%emt 0:02:07]} 24. Rc2 {[%emt 0:00:40]} Rd8 {[%emt 0:01:28]} 25. Rf3 {[%emt 0:00:57]} Rf8 {[%emt 0:01:35]} 26. Rg2 {[%emt 0:00:15]} Rf6 {[%emt 0:00:25]} 27. Qg4 {[%emt 0:00:03]} Be1 {[%emt 0:00:02]} 28. Qg5 {[%emt 0:00:56]} Rf7 {[%emt 0:01:02]} 29. Qh6 {[%emt 0:00:27]} Bxc3 {[%emt 0:03:37]} 30. bxc3 {[%emt 0:00:01]} Qb1+ {[%emt 0:01:23]} 31. Rg1 {[%emt 0:00:29]} Qc2 {[%emt 0:00:10]} 32. Be6 {[%emt 0:00:11]} Qe2 {[%emt 0:00:11]} 33. Rh3 {[%emt 0:00:58]} f3 {[%emt 0:00:02]} 34. Bxf7+ {[%emt 0:00:12]} Kxf7 {[%emt 0:00:02]} 35. Qh7+ {[%emt 0:00:12]} Ke8 {[%emt 0:00:07]} 36. Qh8+ {[%emt 0:00:09]} Kd7 {[%emt 0:00:02]} 37. Qf6 {[%emt 0:00:01]} f2 {[%emt 0:00:15]} 38. Qe6+ {[%emt 0:00:03]} Kc7 {[%emt 0:00:00]} 39. Rh7 {[%emt 0:00:21]} Qf3+ {[%emt 0:00:19]} 40. Kh2 {[%emt 0:00:04]} fxg1=Q+ {[%emt 0:00:03]} 41. Kxg1 {[%emt 0:00:01]} Qg3+ {[%emt 0:00:03]} 42. Kh1 {[%emt 0:00:01]} Rd7 {[%emt 0:00:04]} 43. d4 {[%emt 0:00:12]} Qxc3 {[%emt 0:00:31]} 44. Rxe7 {[%emt 0:00:08]} Qe1+ {[%emt 0:00:01]} 45. Kg2 {[%emt 0:00:03]} Qxe4+ {[%emt 0:00:02]} 46. Kf1 {[%emt 0:00:10]} Qf5+ {[%emt 0:00:10]} 47. Ke2 {[%emt 0:00:05]} Qxe6 {[%emt 0:00:03]} 48. Rxe6 {[%emt 0:00:01]} exd4 {[%emt 0:00:06]} 49. Rxg6 {[%emt 0:00:05]} Kb6 {[%emt 0:00:07]} 50. Kd3 {[%emt 0:00:06]} Kc5 {[%emt 0:00:01]} 51. Rg5 {[%emt 0:00:00]} Re7 {[%emt 0:00:05]} 52. a4 {[%emt 0:00:10]} Re3+ {[%emt 0:00:03]} 53. Kd2 {[%emt 0:00:00]} Rb3 {[%emt 0:00:08]} 54. Kc2 {[%emt 0:00:12]} Rb4 {[%emt 0:00:07]} 0-1

[Event "EIRCC 2019"]
[Site "Tallinn"]
[Date "2019.12.05"]
[Round "5.27"]
[White "Thorfinnsson, Bragi"]
[Black "Martinez Pla, Xavier"]
[Result "1-0"]
[ECO "E46"]
[WhiteElo "2457"]
[BlackElo "2229"]
[Annotator "ChessBase"]
[PlyCount "97"]
[EventDate "2019.12.05"]
[EventType "swiss"]
[EventCountry "EST"]
[SourceTitle "playchess.com"]
[Source "ChessBase"]
[SourceQuality "1"]
[TimeControl "900+10"]

1. d4 {[%emt 0:00:00]} Nf6 {[%emt 0:00:00]} 2. c4 {[%emt 0:00:00]} e6 {[%emt 0:00:00]} 3. Nc3 {[%emt 0:00:00]} Bb4 {[%emt 0:00:00]} 4. e3 {[%emt 0:00:28]} O-O {[%emt 0:00:00]} 5. Nge2 {[%emt 0:00:02]} c6 {[%emt 0:00:01]} 6. a3 {[%emt 0:00:12]} Ba5 {[%emt 0:00:01]} 7. b4 {[%emt 0:01:09]} Bc7 {[%emt 0:00:01]} 8. e4 {[%emt 0:00:05]} d5 {[%emt 0:00:09]} 9. cxd5 {[%emt 0:00:27]} exd5 {[%emt 0:00:17]} 10. e5 {[%emt 0:00:03]} Ne8 {[%emt 0:00:17]} 11. Be3 {[%emt 0:00:43]} Nd7 {[%emt 0:01:37]} 12. Nf4 {[%emt 0:00:50]} Nb6 {[%emt 0:00:27]} 13. Bd3 {[%emt 0:00:05]} Qe7 {[%emt 0:03:18]} 14. Qc2 {[%emt 0:02:13]} g6 {[%emt 0:02:04]} 15. h4 {[%emt 0:01:24]} f6 {[%emt 0:01:02]} 16. exf6 {[%emt 0:01:09]} Rxf6 {[%emt 0:01:36]} 17. Nfe2 {[%emt 0:00:21]} Rf7 {[%emt 0:02:04]} 18. h5 {[%emt 0:00:26]} Bf5 {[%emt 0:00:15]} 19. hxg6 {[%emt 0:00:43]} hxg6 {[%emt 0:00:03]} 20. g4 {[%emt 0:00:18]} Bxd3 {[%emt 0:00:55]} 21. Qxd3 {[%emt 0:00:01]} a5 {[%emt 0:01:07]} 22. b5 {[%emt 0:01:30]} Nc4 {[%emt 0:00:52]} 23. bxc6 {[%emt 0:00:12]} bxc6 {[%emt 0:00:04]} 24. Qxg6+ {[%emt 0:00:03]} Rg7 {[%emt 0:00:13]} 25. Qxc6 {[%emt 0:00:14]} Nxe3 {[%emt 0:00:40]} 26. fxe3 {[%emt 0:00:16]} Rd8 {[%emt 0:00:59]} 27. Nxd5 {[%emt 0:01:34]} Qe4 {[%emt 0:01:15]} 28. Qxe8+ {[%emt 0:00:03]} Qxe8 {[%emt 0:00:11]} 29. Nf6+ {[%emt 0:00:02]} Kf7 {[%emt 0:00:01]} 30. Nxe8 {[%emt 0:00:02]} Rxe8 {[%emt 0:00:02]} 31. Kd2 {[%emt 0:00:07]} Rxg4 {[%emt 0:00:10]} 32. Rh7+ {[%emt 0:00:06]} Rg7 {[%emt 0:00:01]} 33. Rxg7+ {[%emt 0:00:33]} Kxg7 {[%emt 0:00:01]} 34. Kd3 {[%emt 0:00:17]} Rb8 {[%emt 0:00:06]} 35. Kc4 {[%emt 0:00:43]} Re8 {[%emt 0:00:08]} 36. Kd3 {[%emt 0:00:17]} Rb8 {[%emt 0:00:01]} 37. Nc3 {[%emt 0:00:13]} Bd6 {[%emt 0:00:15]} 38. a4 {[%emt 0:00:09]} Kf7 {[%emt 0:00:13]} 39. Nb5 {[%emt 0:00:06]} Bb4 {[%emt 0:00:05]} 40. Rc1 {[%emt 0:00:07]} Rh8 {[%emt 0:00:06]} 41. e4 {[%emt 0:00:20]} Ke6 {[%emt 0:00:08]} 42. Rc6+ {[%emt 0:00:11]} Kd7 {[%emt 0:00:01]} 43. Rg6 {[%emt 0:00:18]} Rh1 {[%emt 0:00:40]} 44. d5 {[%emt 0:00:15]} Rd1+ {[%emt 0:00:20]} 45. Kc4 {[%emt 0:00:10]} Re1 {[%emt 0:00:01]} 46. Rg7+ {[%emt 0:00:15]} Kd8 {[%emt 0:00:34]} 47. Kd4 {[%emt 0:00:19]} Ke8 {[%emt 0:00:16]} 48. d6 {[%emt 0:00:28]} Rd1+ {[%emt 0:00:11]} 49. Ke5 1-0